fUSD/lending_fUSD_20260207
["ID","MTS","AMOUNT","RATE_DAILY","PERIOD"]
[404719649,1770490308844,-151.0,0.00044138,120]
[404719650,1770490308854,-617.001416,0.00044138,120]
[404719651,1770490308863,-221.282419,0.00044138,120]
[404719652,1770490308878,-151.0,0.00044138,120]
[404719653,1770490308887,-617.001416,0.00044138,120]
[404719654,1770490308898,-221.282419,0.00044138,120]
[404719655,1770490308908,-617.001416,0.00044138,120]
[404719656,1770490308919,-151.0,0.00044138,120]
[404719657,1770490308931,-221.282419,0.00044138,120]
[404719658,1770490308941,-617.001416,0.00044138,120]
[404719659,1770490308951,-151.0,0.00044138,120]
[404719660,1770490308962,-151.0,0.00044138,120]
[404719661,1770490308972,-617.001416,0.00044138,120]
[404719662,1770490308980,-221.282419,0.00044138,120]
[404719663,1770490308989,-151.0,0.00044138,120]
[404719664,1770490308997,-617.001416,0.00044138,120]
[404719665,1770490309007,-221.282419,0.00044138,120]
[404719666,1770490309017,-151.0,0.00044138,120]
[404719667,1770490309026,-617.001416,0.00044138,120]
[404719668,1770490309036,-221.282419,0.00044138,120]
[404719669,1770490309046,-151.0,0.00044138,120]
[404719670,1770490309055,-151.0,0.00044138,120]
[404719671,1770490309065,-617.001416,0.00044138,120]
[404719672,1770490309074,-221.282419,0.00044138,120]
[404719673,1770490309084,-241.907631,0.00044138,120]
[404719674,1770490309094,-151.0,0.00044138,120]
[404719675,1770490309104,-221.282419,0.00044138,120]
[404719676,1770490309114,-617.001416,0.00044138,120]
[404719677,1770490309124,-221.282419,0.00044138,120]
[404719678,1770490309134,-617.001416,0.00044138,120]
[404719679,1770490309143,-151.0,0.00044138,120]
[404719680,1770490309153,-221.282419,0.00044138,120]
[404719681,1770490309162,-617.001416,0.00044138,120]
[404719682,1770490309171,-151.0,0.00044138,120]
[404719683,1770490309181,-221.282411,0.00044138,120]
[404719684,1770490309190,-617.001408,0.00044138,120]
[404719685,1770490309200,-151.0,0.00044138,120]
[404719686,1770490309209,-356.992836,0.00044138,120]
[404719687,1770490309219,-356.992836,0.00044138,120]
[404719688,1770490309228,-356.992836,0.00044138,120]
[404719689,1770490309237,-153.706503,0.00044138,120]
[404719690,1770490309247,-356.992836,0.00044138,120]
[404719691,1770490309256,-356.992836,0.00044138,120]
[404719692,1770490309265,-356.992836,0.00044138,120]
[404719693,1770490309274,-356.992836,0.00044138,120]
[404719694,1770490309283,-356.992836,0.00044138,120]
[404719695,1770490309293,-356.992836,0.00044138,120]
[404719696,1770490309303,-237.98717,0.00044138,120]
[404719697,1770490309312,-356.992836,0.00044138,120]
[404719698,1770490309323,-356.992836,0.00044138,120]
[404719699,1770490309333,-356.992839,0.00044138,120]
[404719700,1770490309342,-270.38692,0.00044138,120]
[404719701,1770490309352,-270.38692,0.00044138,120]
[404719702,1770490309362,-270.38692,0.00044138,120]
[404719703,1770490309371,-274.292,0.00044138,120]
[404719704,1770490309381,-270.38692,0.00044138,120]
[404719705,1770490309391,-274.292,0.00044138,120]
[404719706,1770490309401,-270.38692,0.00044138,120]
[404719707,1770490309410,-274.292,0.00044138,120]
[404719708,1770490309421,-270.38692,0.00044138,120]
[404719709,1770490309431,-270.38692,0.00044138,120]
[404719710,1770490309440,-151.0,0.00044138,120]
[404719711,1770490309450,-274.292,0.00044138,120]
[404719712,1770490309459,-242.366115,0.00044138,120]
[404719713,1770490309468,-270.38692,0.00044138,120]
[404719714,1770490309478,-274.292,0.00044138,120]
[404719715,1770490309487,-151.0,0.00044138,120]
[404719716,1770490309496,-270.38692,0.00044138,120]
[404719717,1770490309506,-274.292,0.00044138,120]
[404719718,1770490309516,-151.0,0.00044138,120]
[404719719,1770490309525,-270.38692,0.00044138,120]
[404719720,1770490309535,-274.292,0.00044138,120]
[404719721,1770490309544,-151.0,0.00044138,120]
[404719722,1770490309553,-270.38692,0.00044138,120]
[404719723,1770490309563,-274.292,0.00044138,120]
[404719724,1770490309574,-151.0,0.00044138,120]
[404719725,1770490309584,-270.386912,0.00044138,120]
[404719726,1770490309594,-274.292,0.00044138,120]
[404719727,1770490309603,-151.0,0.00044138,120]
[404719728,1770490309613,-151.0,0.00044138,120]
[404719729,1770490309625,-274.292,0.00044138,120]
[404719730,1770490309634,-200.737238,0.00044138,120]
[404719731,1770490309643,-274.292,0.00044138,120]
[404719732,1770490309653,-274.292,0.00044138,120]
[404719733,1770490309663,-789.245378,0.00044138,120]
[404719734,1770490309672,-405.622787,0.00044138,120]
[404719735,1770490309682,-789.245378,0.00044138,120]
[404719736,1770490309695,-789.245378,0.00044138,120]
[404719737,1770490309705,-789.245378,0.00044138,120]
[404719738,1770490309714,-405.622787,0.00044138,120]
[404719739,1770490309723,-354.385804,0.00044138,120]
[404719740,1770490309735,-405.622787,0.00044138,120]
[404719741,1770490309744,-789.245378,0.00044138,120]
[404719742,1770490309753,-354.385804,0.00044138,120]
[404719743,1770490309762,-789.245378,0.00044138,120]
[404719744,1770490309772,-354.385804,0.00044138,120]
[404719745,1770490309781,-481.99533,0.00044138,31]
[404719746,1770490309790,-405.622787,0.00044138,120]
[404719747,1770490309799,-481.99533,0.00044138,31]
[404719748,1770490309808,-405.622787,0.00044138,120]
[404719749,1770490309818,-354.385804,0.00044138,120]
[404719750,1770490309827,-789.245378,0.00044138,120]
[404719751,1770490309836,-481.99533,0.00044138,31]
[404719752,1770490309846,-405.622787,0.00044138,120]
[404719753,1770490309855,-354.385804,0.00044138,120]
[404719754,1770490309864,-789.245378,0.00044138,120]
[404719755,1770490309874,-354.385804,0.00044138,120]
[404719756,1770490309883,-789.245378,0.00044138,120]
[404719757,1770490309892,-481.99533,0.00044138,31]
[404719758,1770490309902,-481.99533,0.00044138,31]
[404719759,1770490309912,-405.622787,0.00044138,120]
[404719760,1770490309921,-789.245378,0.00044138,120]
[404719761,1770490309931,-354.385804,0.00044138,120]
[404719762,1770490309940,-481.99533,0.00044138,31]
[404719763,1770490309950,-405.622787,0.00044138,120]
[404719764,1770490309960,-151.0,0.00044138,120]
[404719765,1770490309969,-789.245378,0.00044138,120]
[404719766,1770490309979,-354.385804,0.00044138,120]
[404719767,1770490309988,-405.622787,0.00044138,120]
[404719768,1770490309997,-151.0,0.00044138,120]
[404719769,1770490310006,-789.245369,0.00044138,120]
[404719770,1770490310015,-354.385804,0.00044138,120]
[404719771,1770490310027,-151.0,0.00044138,120]
[404719772,1770490310038,-481.99533,0.00044138,31]
[404719773,1770490310048,-319.7639,0.00044138,120]
[404719774,1770490310058,-481.99533,0.00044138,31]
[404719775,1770490310068,-156.50003,0.00044138,120]
[404719776,1770490310078,-405.622787,0.00044138,120]
[404719777,1770490310088,-319.7639,0.00044138,120]
[404719778,1770490310098,-481.99533,0.00044138,31]
[404719779,1770490310107,-354.385804,0.00044138,120]
[404719780,1770490310117,-156.50003,0.00044138,120]
[404719781,1770490310127,-405.622787,0.00044138,120]
[404719782,1770490310136,-299.725108,0.00044138,120]
[404719783,1770490310146,-319.7639,0.00044138,120]
[404719784,1770490310155,-354.385804,0.00044138,120]
[404719785,1770490310166,-405.622796,0.00044138,120]
[404719786,1770490310176,-156.50003,0.00044138,120]
[404719787,1770490310188,-354.3858,0.00044138,120]
[404719788,1770490310204,-481.99533,0.00044138,31]
[404719789,1770490310215,-319.7639,0.00044138,120]
[404719790,1770490310226,-481.99533,0.00044138,31]
[404719791,1770490310237,-319.7639,0.00044138,120]
[404719792,1770490310248,-156.50003,0.00044138,120]
[404719793,1770490310258,-481.995331,0.00044138,31]
[404719794,1770490310269,-319.7639,0.00044138,120]
[404719795,1770490310280,-156.50003,0.00044138,120]
[404719796,1770490310291,-156.50003,0.00044138,120]
[404719797,1770490310300,-319.7639,0.00044138,120]
[404719798,1770490310310,-156.50003,0.00044138,120]
[404719799,1770490310321,-319.7639,0.00044138,120]
[404719800,1770490310331,-203.769917,0.00044138,120]
[404719801,1770490310342,-156.50003,0.00044138,120]
[404719802,1770490310352,-203.769917,0.00044138,120]
[404719803,1770490310363,-319.7639,0.00044138,120]
[404719804,1770490310372,-151.0,0.00044138,120]
[404719805,1770490310383,-156.50003,0.00044138,120]
[404719806,1770490310394,-203.769917,0.00044138,120]
[404719807,1770490310403,-151.0,0.00044138,120]
[404719808,1770490310413,-264.542272,0.00044138,120]
[404719809,1770490310422,-156.50003,0.00044138,120]
[404719810,1770490310432,-319.7639,0.00044138,120]
[404719811,1770490310443,-203.769917,0.00044138,120]
[404719812,1770490310453,-156.50003,0.00044138,120]
[404719813,1770490310463,-319.7639,0.00044138,120]
[404719814,1770490310475,-203.769917,0.00044138,120]
[404719815,1770490310487,-156.500033,0.00044138,120]
[404719816,1770490310496,-319.763908,0.00044138,120]
[404719817,1770490310506,-203.769917,0.00044138,120]
[404719818,1770490310515,-203.769917,0.00044138,120]
[404719819,1770490310525,-203.769917,0.00044138,120]
[404719820,1770490310534,-203.769917,0.00044138,120]
[404719821,1770490310551,-203.769917,0.00044138,120]
[404719822,1770490310560,-203.769917,0.00044138,120]
[404719823,1770490310569,-203.769916,0.00044138,120]
[404719824,1770490310579,-198.72788,0.00044138,120]
[404719825,1770490310589,-198.72788,0.00044138,120]
[404719826,1770490310599,-198.72788,0.00044138,120]
[404719827,1770490310608,-198.72788,0.00044138,120]
[404719828,1770490310618,-198.72788,0.00044138,120]
[404719829,1770490310627,-198.72788,0.00044138,120]
[404719830,1770490310638,-198.72788,0.00044138,120]
[404719831,1770490310647,-198.72788,0.00044138,120]
[404719832,1770490310657,-198.72788,0.00044138,120]
[404719833,1770490310667,-198.72788,0.00044138,120]
[404719834,1770490310677,-198.72788,0.00044138,120]
[404719835,1770490310688,-198.727872,0.00044138,120]
[404719836,1770490310698,-151.0,0.00044138,120]
[404719837,1770490310707,-151.0,0.00044138,120]
[404719838,1770490310717,-151.0,0.00044138,120]
[404719839,1770490310727,-151.0,0.00044138,120]
[404719840,1770490310737,-151.0,0.00044138,120]
[404719841,1770490310746,-151.0,0.00044138,120]
[404719842,1770490310756,-183.542462,0.00044138,120]
[404719843,1770490310766,-654.921522,0.00044138,7]
[404719844,1770490310775,-654.921522,0.00044138,7]
[404719845,1770490310784,-654.921522,0.00044138,7]
[404719846,1770490310793,-202.437854,0.00044138,120]
[404719847,1770490310802,-202.437854,0.00044138,120]
[404719848,1770490310811,-654.921522,0.00044138,7]
[404719849,1770490310820,-202.437854,0.00044138,120]
[404719850,1770490310830,-654.921522,0.00044138,7]
[404719851,1770490310839,-654.921522,0.00044138,7]
[404719852,1770490310849,-202.437854,0.00044138,120]
[404719853,1770490310858,-202.437854,0.00044138,120]
[404719854,1770490310867,-654.921522,0.00044138,7]
[404719855,1770490310877,-202.437854,0.00044138,120]
[404719856,1770490310886,-654.921522,0.00044138,7]
[404719857,1770490310895,-151.0,0.00044138,120]
[404719858,1770490310904,-202.437854,0.00044138,120]
[404719859,1770490310914,-654.921522,0.00044138,7]
[404719860,1770490310923,-151.0,0.00044138,120]
[404719861,1770490310932,-202.437854,0.00044138,120]
[404719862,1770490310941,-151.0,0.00044138,120]
[404719863,1770490310950,-202.437854,0.00044138,120]
[404719864,1770490310960,-654.921522,0.00044138,7]
[404719865,1770490310968,-654.921522,0.00044138,7]
[404719866,1770490310978,-151.0,0.00044138,120]
[404719867,1770490310987,-202.437854,0.00044138,120]
[404719868,1770490310996,-654.921522,0.00044138,7]
[404719869,1770490311006,-202.437854,0.00044138,120]
[404719870,1770490311015,-202.437849,0.00044138,120]
[404719871,1770490311025,-151.0,0.00044138,120]
[404719872,1770490311034,-196.336666,0.00044138,120]
[404719873,1770490311044,-151.0,0.00044138,120]
[404719874,1770490311054,-151.0,0.00044138,120]
[404719875,1770490311064,-151.0,0.00044138,120]
[404719876,1770490311076,-151.0,0.00044138,120]
[404719877,1770490311085,-290.746943,0.00044138,120]
[404719878,1770490311095,-151.0,0.00044138,120]
[404719879,1770490311243,-151.0,0.00044138,90]
[404719880,1770490311257,-151.0,0.00044138,90]
[404719881,1770490311271,-151.0,0.00044138,90]
[404719882,1770490311281,-151.0,0.00044138,90]
[404719883,1770490311291,-382.622478,0.00044138,120]
[404719884,1770490311300,-151.0,0.00044138,90]
[404719885,1770490311310,-382.622478,0.00044138,120]
[404719886,1770490311323,-151.0,0.00044138,90]
[404719887,1770490311332,-382.622478,0.00044138,120]
[404719888,1770490311342,-382.622478,0.00044138,120]
[404719889,1770490311351,-151.0,0.00044138,90]
[404719890,1770490311360,-382.622478,0.00044138,120]
[404719891,1770490311369,-382.622478,0.00044138,120]
[404719892,1770490311379,-1383.011248,0.00044138,120]
[404719893,1770490311389,-382.622478,0.00044138,120]
[404719894,1770490311398,-1383.011248,0.00044138,120]
[404719895,1770490311408,-382.622478,0.00044138,120]
[404719896,1770490311418,-1383.011248,0.00044138,120]
[404719897,1770490311427,-382.622478,0.00044138,120]
[404719898,1770490311437,-1383.011248,0.00044138,120]
[404719899,1770490311447,-1383.011248,0.00044138,120]
[404719900,1770490311456,-1383.011248,0.00044138,120]
[404719901,1770490311465,-175.491772,0.00044138,120]
[404719902,1770490311474,-1383.011248,0.00044138,120]
[404719903,1770490311484,-382.622478,0.00044138,120]
[404719904,1770490311493,-175.491772,0.00044138,120]
[404719905,1770490311503,-1383.011248,0.00044138,120]
[404719906,1770490311513,-382.622478,0.00044138,120]
[404719907,1770490311523,-175.491772,0.00044138,120]
[404719908,1770490311533,-1383.011248,0.00044138,120]
[404719909,1770490311543,-382.622482,0.00044138,120]
[404719910,1770490311556,-1897278.49942748,0.00044138,10]
[404719911,1770490312513,-350.58630183,0.00043835,120]
[404719912,1770490312526,-149.41369817,0.00043835,120]
[404719913,1770490312539,-3600.58630183,0.00044138,10]
[404719914,1770490312565,-598.29810337,0.00043834,120]
[404719915,1770490312576,-500.0,0.00043835,120]
[404719916,1770490312586,-540.82689663,0.00043835,120]
[404719917,1770490313159,-1134.83809216,0.00014613,2]
[404719918,1770490313265,-636.78223279,0.00014613,2]
[404719919,1770490313275,-1771.6203249,0.00020437,2]
[404719920,1770490313286,-1771.6203249,0.00026262,2]
[404719921,1770490313296,-198.6842319,0.00029174,2]
[404719922,1770490313306,-1954.33231862,0.00029326,2]
[404719923,1770490313316,-1771.6203249,0.00032086,2]
[404719924,1770490313328,-150.0,0.00034904,2]
[404719925,1770490313339,-150.0,0.00036649,2]
[404719926,1770490313349,-1771.6203249,0.00037911,2]
[404719927,1770490313359,-150.0,0.00038482,2]
[404719928,1770490313369,-150.0,0.00040406,2]
[404719929,1770490313379,-1771.6203249,0.00043735,2]
[404719930,1770490313392,-233.51889341,0.00043834,120]
[404719931,1770490313402,-200.0,0.00043834,120]
[404719932,1770490313412,-1000.0,0.00043834,120]
[404719933,1770490313422,-250.0,0.00043834,120]
[404719934,1770490313433,-242.15909246,0.00043834,120]
[404719935,1770490313443,-200.0,0.00043834,120]
[404719936,1770490313452,-250.0,0.00043834,120]
[404719937,1770490313462,-200.0,0.00043834,120]
[404719938,1770490313472,-251.11897888,0.00043834,120]
[404719939,1770490313482,-250.0,0.00043834,120]
[404719940,1770490313492,-200.0,0.00043834,120]
[404719941,1770490313502,-260.4103811,0.00043834,120]
[404719942,1770490313512,-250.0,0.00043834,120]
[404719943,1770490313522,-151.0,0.00043834,120]
[404719944,1770490313532,-200.0,0.00043834,120]
[404719945,1770490313541,-270.0455652,0.00043834,120]
[404719946,1770490313551,-151.0,0.00043834,120]
[404719947,1770490313561,-200.0,0.00043834,120]
[404719948,1770490313572,-151.0,0.00043834,120]
[404719949,1770490313582,-280.03725112,0.00043834,120]
[404719950,1770490313592,-151.0,0.00043834,120]
[404719951,1770490313602,-200.0,0.00043834,120]
[404719952,1770490313612,-290.39862941,0.00043834,120]
[404719953,1770490313622,-156.587,0.00043834,120]
[404719954,1770490313632,-151.0,0.00043834,120]
[404719955,1770490313642,-200.0,0.00043834,120]
[404719956,1770490313652,-301.1433787,0.00043834,120]
[404719957,1770490313662,-162.380719,0.00043834,120]
[404719958,1770490313671,-151.0,0.00043834,120]
[404719959,1770490313681,-200.0,0.00043834,120]
[404719960,1770490313694,-168.3888056,0.00043834,120]
[404719961,1770490313704,-842.18435137,0.00043835,120]
[404719962,1770490313714,-500.0,0.00043835,120]
[404719963,1770490313724,-500.0,0.00043835,120]
[404719964,1770490313735,-500.0,0.00043835,120]
[404719965,1770490313745,-500.0,0.00043835,120]
[404719966,1770490313756,-200.01568584,0.00043835,120]
[404719967,1770490313778,-277.40566697,0.00043834,120]
[404719968,1770490313788,-299.98431416,0.00043835,120]
[404719969,1770490313798,-500.0,0.00043835,120]
[404719970,1770490313807,-500.0,0.00043835,120]
[404719971,1770490313817,-500.0,0.00043835,120]
[404719972,1770490313828,-500.0,0.00043835,120]
[404719973,1770490313838,-500.0,0.00043835,120]
[404719974,1770490313847,-175.491772,0.00043835,120]
[404719975,1770490313856,-500.0,0.00043835,120]
[404719976,1770490313866,-500.0,0.00043835,120]
[404719977,1770490313875,-500.0,0.00043835,120]
[404719978,1770490313885,-500.0,0.00043835,120]
[404719979,1770490313894,-500.0,0.00043835,120]
[404719980,1770490313903,-500.0,0.00043835,120]
[404719981,1770490313913,-609.33192886,0.00043835,120]
[404719982,1770490313922,-500.0,0.00043835,120]
[404719983,1770490313932,-500.0,0.00043835,120]
[404719984,1770490313941,-500.0,0.00043835,120]
[404719985,1770490313951,-500.0,0.00043835,120]
[404719986,1770490313961,-500.0,0.00043835,120]
[404719987,1770490313971,-175.491772,0.00043835,120]
[404719988,1770490313981,-500.0,0.00043835,120]
[404719989,1770490313991,-500.0,0.00043835,120]
[404719990,1770490314001,-500.0,0.00043835,120]
[404719991,1770490314010,-500.0,0.00043835,120]
[404719992,1770490314020,-336.8011621,0.00043835,120]
[404719993,1770490314029,-175.491772,0.00044137,120]
[404719994,1770490314039,-1383.011248,0.00044137,120]
[404719995,1770490314048,-175.491772,0.00044137,120]
[404719996,1770490314058,-175.491772,0.00044137,120]
[404719997,1770490314068,-175.491772,0.00044138,120]
[404719998,1770490314079,-1383.011248,0.00044138,120]
[404719999,1770490314088,-175.491772,0.00044138,120]
[404720000,1770490314098,-1383.011248,0.00044138,120]
[404720001,1770490314107,-175.491772,0.00044138,120]
[404720002,1770490314116,-1383.011253,0.00044138,120]
[404720003,1770490314126,-175.491772,0.00044138,120]
[404720004,1770490314135,-175.491772,0.00044138,120]
[404720005,1770490314145,-175.491772,0.00044138,120]
[404720006,1770490314155,-175.491772,0.00044138,120]
[404720007,1770490314164,-175.491772,0.00044138,120]
[404720008,1770490314174,-175.491775,0.00044138,120]
[404720009,1770490314184,-125448.17754597,0.00044138,10]
[404720010,1770490314204,-200.0,0.00043834,120]
[404720011,1770490314214,-521.62878943,0.00043835,120]
[404720012,1770490314223,-48877.71715273,0.00044138,10]
[404720013,1770490314235,-718.97353752,0.00044138,10]
[404720014,1770490323741,958.0,0.0003561,30]
[404720015,1770490325775,228.0,0.0003561,30]
[404720016,1770490326572,254.0,0.0003561,30]
[404720019,1770490369581,214.02,0.000328,30]
[404720035,1770490443745,883.73,0.0003561,30]
[404720042,1770490446346,156.0,0.0003561,30]
[404720043,1770490484083,740.67,0.000329,30]
[404720046,1770490504247,290.0,0.0003561,30]
[404720059,1770490564633,549.32,0.000309,30]
[404720060,1770490564918,549.32,0.00035,30]
[404720062,1770490608758,319.441476,0.0003325,60]
[404720071,1770490630621,169.28606237,0.000356,120]
[404720072,1770490677223,555.5,0.000332,30]
[404720074,1770490825662,523.96476854,0.00034949,30]
[404720075,1770490852872,1307.13,0.00027397,30]
[404720076,1770490853189,1307.13,0.00032232,30]
[404720078,1770490867080,416.62,0.000334,30]
[404720080,1770490943995,169.28606238,0.000356,120]
[404720081,1770490947326,439.46,0.000304,30]
[404720082,1770490947648,439.46,0.000343,30]
[404720087,1770491058481,312.47,0.000334,30]
[404720094,1770491139057,-268.0,0.00014321,2]
[404720095,1770491141996,351.56,0.000308,30]
[404720096,1770491142287,351.56,0.000338,30]
[404720098,1770491187543,142.4007566,0.00014121,2]
[404720101,1770491248517,234.35,0.000336,30]
[404720102,1770491261432,169.28606237,0.000356,120]
[404720111,1770491337125,281.25,0.000302,30]
[404720112,1770491337425,281.25,0.000338,30]
[404720114,1770491431710,-857.5992434,0.00014121,2]
[404720115,1770491431720,-200.0,0.00014137,2]
[404720116,1770491431730,-554.21585263,0.00014234,2]
[404720117,1770491431753,-45.78414737,0.00014234,2]
[404720118,1770491431763,-496.84019151,0.00014412,2]
[404720119,1770491431796,-154.60391471,0.00014412,2]
[404720120,1770491431806,-198.6842319,0.00014412,2]
[404720121,1770491431815,-150.0,0.00014484,2]
[404720122,1770491431825,-19.71185339,0.00014502,2]
[404720123,1770491431836,-585.77147764,0.00014502,2]
[404720124,1770491431855,-2224.66186752,0.00014502,2]
[404720125,1770491431867,-346.03584201,0.00014502,2]
[404720126,1770491431926,-2073.2599778,0.00014502,2]
[404720127,1770491431938,-251.48898164,0.00014502,2]
[404720128,1770491431948,-5500.93,0.00014502,2]
[404720129,1770491431958,-150.0,0.0001451,2]
[404720130,1770491431967,-1060.30920703,0.0001451,2]
[404720143,1770491437736,-424.06072804,0.0001451,2]
[404720149,1770491437843,-38.77150871,0.0001451,2]
[404720150,1770491437852,-269.71765919,0.0001451,2]
[404720151,1770491437862,-648.64847062,0.0001451,2]
[404720152,1770491437871,-648.64847062,0.0001451,2]
[404720153,1770491437881,-648.64847062,0.0001451,2]
[404720154,1770491437891,-648.64847062,0.0001451,2]
[404720155,1770491437900,-648.64847062,0.0001451,2]
[404720156,1770491437910,-648.64847062,0.0001451,2]
[404720157,1770491437919,-648.64847062,0.0001451,2]
[404720158,1770491437928,-648.64847062,0.0001451,2]
[404720159,1770491437938,-648.64847062,0.0001451,2]
[404720160,1770491437947,-648.64847062,0.0001451,2]
[404720161,1770491437957,-648.64847062,0.0001451,2]
[404720162,1770491437967,-648.64847062,0.0001451,2]
[404720163,1770491437978,-648.64847062,0.0001451,2]
[404720164,1770491437987,-648.64847062,0.0001451,2]
[404720165,1770491437997,-648.64847062,0.0001451,2]
[404720166,1770491438007,-648.64847062,0.0001451,2]
[404720167,1770491438016,-648.64847062,0.0001451,2]
[404720168,1770491438026,-648.64847062,0.0001451,2]
[404720169,1770491438037,-648.64847062,0.0001451,2]
[404720170,1770491438047,-648.64847062,0.0001451,2]
[404720171,1770491438056,-648.64847062,0.0001451,2]
[404720173,1770491438066,-551.84500612,0.0001451,2]
[404720177,1770491438096,-96.8034645,0.0001451,2]
[404720179,1770491438105,-199.73343453,0.0001451,2]
[404720181,1770491438118,-448.91503609,0.0001451,2]
[404720183,1770491438127,-648.64847062,0.0001451,2]
[404720186,1770491438137,-648.64847062,0.0001451,2]
[404720187,1770491438147,-648.64847062,0.0001451,2]
[404720189,1770491438157,-648.64847062,0.0001451,2]
[404720191,1770491438166,-50.2410812,0.0001451,2]
[404720194,1770491438178,-598.40738942,0.0001451,2]
[404720196,1770491438188,-648.64847062,0.0001451,2]
[404720198,1770491438198,-448.24981475,0.0001451,2]
[404720201,1770491438223,-200.39865587,0.0001451,2]
[404720203,1770491438233,-648.64847062,0.0001451,2]
[404720205,1770491438242,-648.64847062,0.0001451,2]
[404720207,1770491438251,-648.64847062,0.0001451,2]
[404720210,1770491438262,-648.64847062,0.0001451,2]
[404720211,1770491438271,-648.64847062,0.0001451,2]
[404720213,1770491438281,-648.64847062,0.0001451,2]
[404720215,1770491438290,-648.64847062,0.0001451,2]
[404720216,1770491438299,-648.64847062,0.0001451,2]
[404720217,1770491438308,-648.64847062,0.0001451,2]
[404720218,1770491438318,-648.64847062,0.0001451,2]
[404720219,1770491438327,-648.64847062,0.0001451,2]
[404720220,1770491438338,-648.64847062,0.0001451,2]
[404720221,1770491438351,-648.64847062,0.0001451,2]
[404720222,1770491438360,-648.64847062,0.0001451,2]
[404720223,1770491438371,-648.64847062,0.0001451,2]
[404720224,1770491438381,-648.64847062,0.0001451,2]
[404720225,1770491438391,-648.64847062,0.0001451,2]
[404720226,1770491438401,-648.64847062,0.0001451,2]
[404720227,1770491438410,-648.64847062,0.0001451,2]
[404720228,1770491438420,-648.64847062,0.0001451,2]
[404720229,1770491438430,-648.64847062,0.0001451,2]
[404720230,1770491438439,-648.64847062,0.0001451,2]
[404720231,1770491438448,-648.64847062,0.0001451,2]
[404720232,1770491438458,-648.64847062,0.0001451,2]
[404720233,1770491438468,-139.69079297,0.0001451,2]
[404720234,1770491438478,-500.0,0.00014511,2]
[404720235,1770491438487,-500.0,0.00014511,2]
[404720236,1770491438497,-485.10649258,0.00014511,2]
[404720237,1770491438506,-216.29050541,0.00014511,2]
[404720238,1770491438516,-564.52054537,0.00014511,2]
[404720239,1770491438525,-1852.42,0.00014511,2]
[404720240,1770491438535,-1787545.65664625,0.00014512,2]
[404720242,1770491439838,-1965.33,0.00014512,2]
[404720243,1770491439894,-497.813004,0.00014512,2]
[404720244,1770491440004,-1169.5132345,0.00014512,2]
[404720245,1770491440055,-1432.3125644,0.00014512,2]
[404720246,1770491440066,-512.27802841,0.00014512,2]
[404720247,1770491440216,-1706877.09652244,0.00014512,2]
[404720248,1770491440225,-2500.0,0.00014512,2]
[404720249,1770491440234,-3272.88057742,0.00014544,2]
[404720250,1770491440243,-164.87167324,0.00014563,2]
[404720251,1770491440252,-2128.64393106,0.000146,2]
[404720252,1770491440262,-151.0,0.00014604,2]
[404720253,1770491440271,-151.0,0.00014604,2]
[404720254,1770491440281,-151.0,0.00014604,2]
[404720255,1770491440291,-151.0,0.00014604,2]
[404720256,1770491440300,-151.0,0.00014604,2]
[404720257,1770491440309,-151.0,0.00014604,2]
[404720258,1770491440318,-151.0,0.00014604,2]
[404720259,1770491440328,-151.0,0.00014604,2]
[404720260,1770491440337,-264.66195742,0.00014604,2]
[404720261,1770491440347,-29845.68,0.00014644,2]